lending/lending_fUSD_20260411
["ID","MTS","AMOUNT","RATE_DAILY","PERIOD"]
[420259050,1775861441705,-174.61919141,0.00013226,2]
[420259051,1775861441718,-151.0,0.00013226,2]
[420259052,1775861441737,-743.50770149,0.00013226,2]
[420259053,1775861441755,-170.0,0.00013226,2]
[420259054,1775861441777,-170.0,0.00013226,2]
[420259055,1775861441793,-251.02460973,0.00013226,2]
[420259056,1775861441812,-279.9045709,0.00013226,2]
[420259057,1775861441823,-166.66,0.00013233,2]
[420259058,1775861441835,-681.38,0.00013233,2]
[420259059,1775861441853,-18892.20985596,0.0001324,2]
[420259060,1775861441862,-500.0,0.00013281,2]
[420259061,1775861441872,-151.0,0.00013281,2]
[420259062,1775861441897,-2000.0,0.00013303,2]
[420259063,1775861441906,-200.0,0.00013314,2]
[420259064,1775861441915,-150.0,0.00013327,2]
[420259065,1775861441934,-150.0,0.00013328,2]
[420259066,1775861441945,-178.551485,0.0001333,2]
[420259067,1775861441956,-151.0,0.00013336,2]
[420259068,1775861441965,-151.0,0.00013391,2]
[420259069,1775861441985,-2351.0,0.0001342,2]
[420259070,1775861441996,-160.0,0.00013424,2]
[420259071,1775861442005,-492.628074,0.00013424,2]
[420259072,1775861442016,-825.256148,0.00013424,2]
[420259073,1775861442032,-3240.0,0.00013425,2]
[420259074,1775861442041,-160.0,0.00013425,2]
[420259075,1775861442052,-455.777917,0.00013425,2]
[420259076,1775861442062,-751.555835,0.00013425,2]
[420259077,1775861442071,-151.0,0.00013446,2]
[420259078,1775861442080,-443.98927641,0.00013487,2]
[420259079,1775861442098,-2048.23499573,0.00013487,2]
[420259084,1775861442724,-335.04991627,0.00013487,2]
[420259090,1775861445766,-5880.04837399,0.00013487,2]
[420259091,1775861445775,-7337.92486274,0.00013498,2]
[420259092,1775861445794,-151.0,0.00013501,2]
[420259093,1775861445816,-681.38,0.00013507,2]
[420259094,1775861445837,-2128.0,0.00013527,5]
[420259095,1775861445856,-18892.20985589,0.00013536,2]
[420259096,1775861445869,-151.0,0.00013556,2]
[420259097,1775861445885,-1000.0,0.00013568,2]
[420259098,1775861445900,-154.48,0.00013575,2]
[420259099,1775861445913,-151.0,0.00013611,2]
[420259100,1775861445929,-166.66,0.00013643,2]
[420259101,1775861445946,-500.0,0.00013644,2]
[420259102,1775861445956,-151.0,0.00013666,2]
[420259103,1775861445971,-500.0,0.00013684,2]
[420259104,1775861445987,-500.0,0.00013684,2]
[420259105,1775861445996,-500.0,0.00013684,2]
[420259106,1775861446007,-598.8104102,0.00013695,2]
[420259107,1775861446022,-155.335,0.00013697,2]
[420259108,1775861446038,-500.0,0.00013698,2]
[420259109,1775861446048,-500.0,0.00013698,2]
[420259110,1775861446068,-500.0,0.00013698,2]
[420259111,1775861446077,-500.0,0.00013698,2]
[420259112,1775861446086,-477.96240214,0.00013698,2]
[420259113,1775861446103,-22.03759786,0.00013698,2]
[420259114,1775861446120,-500.0,0.00013698,2]
[420259115,1775861446133,-206.05240214,0.00013698,2]
[420259116,1775861446145,-293.94759786,0.00013698,2]
[420259117,1775861446168,-500.0,0.00013698,2]
[420259118,1775861446184,-500.0,0.00013698,2]
[420259119,1775861446203,-500.0,0.00013698,2]
[420259120,1775861446216,-500.0,0.00013698,2]
[420259121,1775861446235,-194.37927344,0.00013698,2]
[420259125,1775862181215,300.0,0.00010699,2]
[420259126,1775862192334,300.0,0.00010699,2]
[420259127,1775862213594,3542.01,0.00010646,2]
[420259128,1775862301247,526.766328,0.00010699,2]
[420259129,1775862301314,441.233672,0.00010699,2]
[420259131,1775862340722,-195.35678706,0.000107,2]
[420259132,1775862428496,151.0,0.00010694,2]
[420259133,1775862429064,151.0,0.00010694,2]
[420259134,1775862429638,151.0,0.00010694,2]
[420259135,1775862432042,151.0,0.00010694,2]
[420259136,1775862432297,151.0,0.00010694,2]
[420259137,1775862432704,151.0,0.00010694,2]
[420259138,1775862433798,151.0,0.00010694,2]
[420259139,1775862433999,151.0,0.00010694,2]
[420259140,1775862434318,202.29042562,0.00010694,2]
[420259141,1775862439904,200.0,0.00010694,2]
[420259142,1775862443780,294.03509995,0.00010694,2]
[420259143,1775862444063,500.0,0.00010694,2]
[420259144,1775862444399,428.63987053,0.00010694,2]
[420259147,1775862631811,-700.05,0.000107,2]
[420259148,1775862631824,-34863.23275584,0.000107,2]
[420259149,1775862631839,-250.0,0.00010857,2]
[420259150,1775862631851,-195.0,0.000111,2]
[420259151,1775862631860,-195.0,0.000111,2]
[420259152,1775862631870,-196.79201029,0.000111,2]
[420259154,1775862631879,-250.0,0.00011148,2]
[420259156,1775862631894,-200.0,0.00011242,2]
[420259158,1775862631904,-150.0,0.00011556,2]
[420259160,1775862631914,-339.24114641,0.0001177,2]
[420259162,1775862631923,-195.0,0.0001177,2]
[420259164,1775862631935,-250.0,0.0001177,2]
[420259165,1775862631944,-195.0,0.0001177,2]
[420259166,1775862631954,-200.0,0.0001179,2]
[420259167,1775862631964,-150.0,0.000119,2]
[420259169,1775862631975,-500.0,0.00011952,2]
[420259170,1775862631984,-150.81482166,0.00011952,2]
[420259171,1775862631993,-1852.42,0.00012334,2]
[420259172,1775862632006,-225.90160366,0.00012338,2]
[420259173,1775862632016,-194.6134,0.00012631,2]
[420259174,1775862632028,-1465.05,0.00012731,2]
[420259175,1775862632038,-281.93962292,0.00012839,2]
[420259176,1775862632054,-150.0,0.00012839,2]
[420259177,1775862632067,-150.0,0.0001288,2]
[420259178,1775862632077,-12759.03,0.00012881,2]
[420259179,1775862632097,-9999.99,0.00012881,2]
[420259180,1775862632113,-150.99,0.00012881,2]
[420259181,1775862632129,-1235.18214925,0.00012881,2]
[420259182,1775862632154,-578.20924308,0.00012881,2]
[420259183,1775862632165,-174.61919142,0.00012881,2]
[420259184,1775862632206,-200.0,0.00012881,2]
[420259185,1775862632220,-174.61919141,0.00012881,2]
[420259186,1775862632251,-771.01748645,0.00012881,2]
[420259187,1775862632261,-151.0,0.00012881,2]
[420259188,1775862632280,-279.9045709,0.00012881,2]
[420259189,1775862632293,-459.92938606,0.00012903,2]
[420259190,1775862632302,-151.0,0.00012936,2]
[420259191,1775862632318,-151.0,0.00012991,2]
[420259192,1775862632328,-250.0,0.00013,2]
[420259193,1775862632338,-151.0,0.00013046,2]
[420259194,1775862632347,-1500.0,0.00013078,2]
[420259195,1775862632361,-506.0,0.000131,2]
[420259196,1775862632370,-151.0,0.00013101,2]
[420259197,1775862632381,-2000.0,0.00013111,2]
[420259198,1775862632390,-151.0,0.00013156,2]
[420259199,1775862632403,-173.8133,0.000132,2]
[420259200,1775862632412,-151.0,0.00013211,2]
[420259201,1775862632422,-152.04103381,0.00013266,2]
[420259202,1775862632433,-1379.0,0.00013321,2]
[420259203,1775862632442,-497.0,0.00013321,2]
[420259204,1775862632455,-377.0,0.00013356,2]
[420259205,1775862632464,-1317.0,0.00013373,2]
[420259206,1775862632475,-295.0,0.00013382,2]
[420259207,1775862632485,-168.02849206,0.00013409,2]
[420259208,1775862632499,-3240.0,0.00013425,2]
[420259209,1775862632508,-1280.88388878,0.00013429,2]
[420259210,1775862632520,-181.08010149,0.00013429,2]
[420259211,1775862632529,-306.32193287,0.00013429,2]
[420259212,1775862632541,-15113.76788473,0.00013498,2]
[420259213,1775862632550,-8994.9573,0.00013498,2]
[420259214,1775862632563,-2500.0,0.00013498,2]
[420259215,1775862632572,-5000.0,0.00013498,2]
[420259216,1775862632582,-342.1773773,0.00013499,2]
[420259217,1775862632591,-500.0,0.00013573,2]
[420259218,1775862632600,-500.0,0.00013573,2]
[420259219,1775862632613,-500.0,0.00013573,2]
[420259220,1775862632622,-500.0,0.00013573,2]
[420259221,1775862632632,-500.0,0.00013573,2]
[420259222,1775862632641,-233.66702618,0.00013573,2]
[420259223,1775862632650,-500.0,0.00013573,2]
[420259224,1775862632663,-675.99583,0.0001358,2]
[420259225,1775862632673,-675.99584,0.0001358,2]
[420259226,1775862632682,-675.99584,0.0001358,2]
[420259227,1775862632691,-161.84108007,0.00013588,2]
[420259228,1775862632704,-675.99583,0.0001359,2]
[420259229,1775862632713,-675.99583,0.0001359,2]
[420259230,1775862632723,-675.99583,0.0001359,2]
[420259231,1775862632732,-1409.4931481,0.00013597,2]
[420259232,1775862632741,-500.0,0.00013597,2]
[420259233,1775862632752,-175.07060046,0.00013597,2]
[420259234,1775862632762,-213.72989813,0.00013597,2]
[420259235,1775862632772,-500.0,0.00013597,2]
[420259236,1775862632781,-500.0,0.00013597,2]
[420259237,1775862632790,-500.0,0.00013597,2]
[420259238,1775862632799,-644.62276838,0.00013597,2]
[420259239,1775862632808,-179.89018579,0.00013597,2]
[420259240,1775862632818,-180.66950007,0.00013597,2]
[420259241,1775862632827,-500.0,0.00013597,2]
[420259242,1775862632836,-500.0,0.00013597,2]
[420259243,1775862632845,-505.87226587,0.00013597,2]
[420259244,1775862632855,-500.0,0.00013597,2]
[420259245,1775862632864,-404.29723375,0.00013597,2]
[420259246,1775862632873,-300.0,0.00013597,2]
[420259247,1775862632883,-355.93352549,0.00013597,2]
[420259248,1775862632892,-1262.0,0.00013598,5]
[420259249,1775862632902,-223.854038,0.00013598,2]
[420259250,1775862632911,-223.854038,0.00013598,2]
[420259251,1775862632920,-223.854038,0.00013598,2]
[420259252,1775862632930,-223.854038,0.00013598,2]
[420259253,1775862632939,-331.196157,0.00013598,2]
[420259254,1775862632951,-331.196157,0.00013598,2]
[420259255,1775862632960,-331.196157,0.00013598,2]
[420259256,1775862632969,-331.196157,0.00013598,2]
[420259257,1775862632981,-641618.48590883,0.00013598,2]
[420259258,1775862632994,-45390.17569191,0.00013598,2]
[420259259,1775862633008,-69575.01692177,0.00013598,2]
[420259260,1775862633025,-52052.48282062,0.00013598,2]
[420259261,1775862633037,-764.99473768,0.00013598,2]
[420259262,1775862633052,-561.36,0.00013598,2]
[420259269,1775862640414,-611.85130665,0.00013598,2]
[420259271,1775862640430,-675.85222482,0.00013598,2]
[420259273,1775862640442,-956.79071888,0.00013598,2]
[420259306,1775862642842,-1054.0,0.00013598,2]
[420259314,1775862645637,-4051.75,0.00013598,2]
[420259319,1775862646297,-1009.25,0.00013598,2]
[420259332,1775863832961,-626.74843471,0.00012044,2]
[420259333,1775863833126,-415.33156529,0.00012044,2]
[420259334,1775863833139,-300.0,0.0001208,2]
[420259335,1775863833154,-4080.48,0.00012081,2]
[420259336,1775863833165,-1600.0,0.00012081,2]
[420259337,1775863833174,-250.0,0.00012089,2]
[420259338,1775863833185,-1188.42,0.00012096,2]
[420259339,1775863833196,-154.88,0.00012135,2]
[420259340,1775863833212,-1107.34,0.00012335,2]
[420259341,1775863833222,-578.20924308,0.0001249,2]
[420259342,1775863833232,-3361.969,0.00012525,2]
[420259343,1775863833248,-173.4,0.00012525,2]
[420259344,1775863833258,-1000.0,0.00012681,2]
[420259345,1775863833269,-5000.0,0.00012681,2]
[420259346,1775863833278,-2500.0,0.00012681,2]
[420259347,1775863833294,-150.0,0.00012687,2]
[420259348,1775863833308,-13694.46656476,0.00012688,2]
[420259349,1775863833317,-3801.21785983,0.00012688,2]
[420259351,1775863833332,-207.8759231,0.00012688,2]
[420259353,1775863833343,-161.84108008,0.00012771,2]
[420259354,1775863833365,-500.0,0.00012773,2]
[420259356,1775863833376,-500.0,0.00012773,2]
[420259358,1775863833385,-150.83840523,0.00012773,2]
[420259360,1775863833394,-545.11,0.00012773,2]
[420259362,1775863833419,-1235.18214925,0.00012773,2]
[420259364,1775863833427,-151.0,0.00012773,2]
[420259366,1775863833436,-151.0,0.00012773,2]
[420259368,1775863833455,-151.0,0.00012773,2]
[420259370,1775863833464,-151.0,0.00012773,2]
[420259371,1775863833474,-151.0,0.00012773,2]
[420259373,1775863833484,-151.0,0.00012773,2]
[420259375,1775863833496,-151.0,0.00012773,2]
[420259377,1775863833505,-151.0,0.00012773,2]
[420259379,1775863833521,-151.0,0.00012773,2]
[420259381,1775863833531,-151.0,0.00012773,2]
[420259382,1775863833546,-151.0,0.00012773,2]
[420259384,1775863833562,-200.0,0.00012773,2]
[420259386,1775863833581,-151.0,0.00012773,2]
[420259388,1775863833591,-151.0,0.00012773,2]
[420259390,1775863833611,-151.0,0.00012773,2]
[420259392,1775863833667,-151.0,0.00012773,2]
[420259394,1775863833702,-500.0,0.00012773,2]
[420259395,1775863833713,-151.0,0.00012773,2]
[420259396,1775863833744,-500.0,0.00012773,2]
[420259397,1775863833759,-174.61919141,0.00012773,2]
[420259398,1775863833791,-500.0,0.00012773,2]
[420259399,1775863833804,-500.0,0.00012773,2]
[420259400,1775863833815,-500.0,0.00012773,2]
[420259401,1775863833836,-500.0,0.00012773,2]
[420259402,1775863833850,-500.0,0.00012773,2]
[420259403,1775863833865,-500.0,0.00012773,2]
[420259404,1775863833892,-500.0,0.00012773,2]
[420259405,1775863833917,-500.0,0.00012773,2]
[420259406,1775863833926,-500.0,0.00012773,2]
[420259407,1775863833937,-500.0,0.00012773,2]
[420259408,1775863833955,-500.0,0.00012773,2]
[420259409,1775863833971,-500.0,0.00012773,2]
[420259410,1775863833981,-500.0,0.00012773,2]
[420259411,1775863834007,-500.0,0.00012773,2]
[420259412,1775863834017,-500.0,0.00012773,2]
[420259413,1775863834040,-500.0,0.00012773,2]
[420259414,1775863834049,-500.0,0.00012773,2]
[420259415,1775863834058,-500.0,0.00012773,2]
[420259416,1775863834081,-500.0,0.00012773,2]
[420259417,1775863834094,-500.0,0.00012773,2]
[420259418,1775863834106,-500.0,0.00012773,2]
[420259419,1775863834115,-500.0,0.00012773,2]
[420259420,1775863834125,-500.0,0.00012773,2]
[420259421,1775863834138,-500.0,0.00012773,2]
[420259422,1775863834149,-500.0,0.00012773,2]
[420259423,1775863834158,-500.0,0.00012773,2]
[420259424,1775863834170,-500.0,0.00012773,2]
[420259425,1775863834190,-544.71552557,0.00012773,2]
[420259426,1775863834200,-1183.64271969,0.00012773,2]
[420259427,1775863834209,-283.00806362,0.0001278,2]
[420259428,1775863834223,-500.0,0.0001278,2]
[420259429,1775863834237,-500.0,0.0001278,2]
[420259430,1775863834260,-404.11058611,0.0001278,2]
[420259431,1775863834271,-358.2035376,0.0001278,2]
[420259432,1775863834281,-500.0,0.0001278,2]
[420259433,1775863834306,-500.0,0.0001278,2]
[420259434,1775863834319,-501.23593787,0.0001278,2]
[420259435,1775863834332,-177.08369095,0.0001278,2]
[420259436,1775863834351,-150.0,0.0001278,2]
[420259437,1775863834360,-150.0,0.0001278,2]
[420259438,1775863834372,-150.0,0.0001278,2]
[420259439,1775863834389,-183931.69447599,0.00012781,2]
[420259442,1775863838162,-878.37832025,0.00012688,2]
[420259443,1775863838172,-1234.57796504,0.00012781,2]
[420259444,1775863838191,-458.85575255,0.00012781,2]
[420259483,1775863840236,-915.16147613,0.00012781,2]
[420259484,1775863840252,-46072.36318434,0.00012781,2]
[420259485,1775863840271,-2027.67609915,0.00012781,2]
[420259486,1775863840641,-1594.60582136,0.00012781,2]
[420259499,1775863845932,-543.37872729,0.00012781,2]
[420259500,1775864348296,523.49956921,0.0001069,2]
[420259501,1775864667272,400.0,0.00010388,2]
[420259508,1775865033926,-315.42809693,0.00010799,2]
[420259509,1775865033946,-539.47677697,0.00010799,2]
[420259510,1775865033960,-250.0,0.00010814,2]
[420259511,1775865033973,-200.3541267,0.00010819,2]
[420259512,1775865033983,-980.15948263,0.00010828,2]
[420259513,1775865034031,-4019.84051737,0.00010828,2]
[420259514,1775865034048,-221.730825,0.00010857,2]
[420259515,1775865034074,-1200.0,0.00010877,2]
[420259516,1775865034104,-1200.0,0.00010877,2]
[420259517,1775865034136,-1000.0,0.00011115,2]
[420259518,1775865034166,-254.04,0.00011392,2]
[420259519,1775865034177,-500.0,0.00011418,2]
[420259520,1775865034186,-300.0,0.00011472,2]
[420259521,1775865034234,-1000.0,0.00011473,2]
[420259522,1775865034254,-221.73082498,0.00011665,2]
[420259523,1775865034275,-372.0,0.00011853,2]
[420259524,1775865034286,-200.0,0.00011864,2]
[420259525,1775865034325,-150.0,0.00011878,2]
[420259526,1775865034336,-195.0,0.00011879,2]
[420259527,1775865034351,-195.0,0.00011879,2]
[420259528,1775865034372,-195.0,0.00011879,2]
[420259529,1775865034386,-195.0,0.00011879,2]
[420259530,1775865034395,-600.0,0.00011879,2]
[420259531,1775865034422,-600.0,0.00011879,2]
[420259532,1775865034432,-600.0,0.00011879,2]
[420259533,1775865034443,-600.0,0.00011879,2]
[420259534,1775865034471,-5000.0,0.00011879,2]
[420259535,1775865034481,-250.0,0.00011879,2]
[420259536,1775865034499,-5000.0,0.00011879,2]
[420259537,1775865034511,-300.28285874,0.00011879,2]
[420259538,1775865034524,-1000.0,0.00011928,2]
[420259539,1775865034542,-1680.0,0.00011965,2]
[420259540,1775865034554,-935.0,0.00012064,2]
[420259541,1775865034563,-150.0,0.000122,2]
[420259542,1775865034577,-150.0,0.00012203,2]
[420259543,1775865034591,-1000.0,0.00012268,2]
[420259544,1775865034603,-1000.0,0.00012281,2]
[420259545,1775865034615,-351.08419038,0.00012307,2]
[420259546,1775865034632,-446.0,0.00012325,2]
[420259547,1775865034643,-1000.0,0.00012388,2]
[420259548,1775865034655,-221.73082498,0.00012473,2]
[420259549,1775865034676,-182.92,0.0001256,2]
[420259550,1775865034688,-3271.922,0.00012572,2]
[420259551,1775865034699,-169.018,0.00012572,2]
[420259552,1775865034722,-1000.0,0.00012573,2]
[420259553,1775865034738,-12018.90338268,0.00012573,2]
[420259554,1775865034765,-539.87256873,0.00012573,2]
[420259555,1775865038227,-11459.67674882,0.00012573,2]
[420259556,1775865038239,-12006.29957838,0.00012573,2]
[420259557,1775865038262,-8901.87102139,0.00012573,2]
[420259558,1775865038271,-5113.602,0.00012573,2]
[420259559,1775865038280,-2500.0,0.00012573,2]
[420259560,1775865038292,-5000.0,0.00012573,2]
[420259561,1775865038311,-991.37648886,0.00012576,2]
[420259562,1775865038320,-414.7907235,0.00012576,2]
[420259563,1775865038378,-85.2092765,0.00012576,2]
[420259564,1775865038394,-316.43868829,0.00012576,2]
[420259565,1775865038403,-14424.15433674,0.00012576,2]
[420259566,1775865038412,-3421.09607382,0.00012576,2]
[420259567,1775865038423,-3060.65366294,0.00012581,2]
[420259568,1775865038434,-1000.0,0.00012615,2]
[420259569,1775865038444,-156.80190934,0.00012663,2]
[420259570,1775865038453,-500.0,0.00012666,2]
[420259571,1775865038467,-500.0,0.00012666,2]
[420259572,1775865038479,-500.0,0.00012666,2]
[420259573,1775865038490,-500.0,0.00012666,2]
[420259574,1775865038499,-500.0,0.00012666,2]
[420259575,1775865038519,-500.0,0.00012666,2]
[420259576,1775865038529,-495.01548166,0.00012666,2]
[420259577,1775865038548,-200.0,0.00012666,2]
[420259578,1775865038574,-151.0,0.00012666,2]
[420259579,1775865038621,-151.0,0.00012666,2]
[420259580,1775865038694,-151.0,0.00012666,2]
[420259581,1775865038715,-500.0,0.00012666,2]
[420259583,1775865038760,-151.0,0.00012666,2]
[420259585,1775865038787,-500.0,0.00012666,2]
[420259587,1775865038824,-151.0,0.00012666,2]
[420259588,1775865038835,-500.0,0.00012666,2]
[420259590,1775865038871,-151.0,0.00012666,2]
[420259591,1775865038898,-500.0,0.00012666,2]
[420259592,1775865038913,-151.0,0.00012666,2]
[420259594,1775865038940,-500.0,0.00012666,2]
[420259596,1775865038959,-151.0,0.00012666,2]
[420259598,1775865038971,-500.0,0.00012666,2]
[420259599,1775865038981,-151.0,0.00012666,2]
[420259601,1775865038992,-500.0,0.00012666,2]
[420259603,1775865039016,-151.0,0.00012666,2]
[420259605,1775865039025,-500.0,0.00012666,2]
[420259608,1775865039043,-151.0,0.00012666,2]
[420259609,1775865039064,-500.0,0.00012666,2]
[420259612,1775865039081,-151.0,0.00012666,2]
[420259613,1775865039095,-500.0,0.00012666,2]
[420259616,1775865039114,-500.0,0.00012666,2]
[420259618,1775865039132,-151.0,0.00012666,2]
[420259619,1775865039145,-500.0,0.00012666,2]
[420259620,1775865039159,-151.0,0.00012666,2]
[420259621,1775865039176,-500.0,0.00012666,2]
[420259622,1775865039186,-151.0,0.00012666,2]
[420259623,1775865039203,-151.0,0.00012666,2]
[420259624,1775865039220,-151.0,0.00012666,2]
[420259625,1775865039235,-151.0,0.00012666,2]
[420259626,1775865039244,-151.0,0.00012666,2]
[420259627,1775865039268,-151.0,0.00012666,2]
[420259628,1775865039285,-151.0,0.00012666,2]
[420259629,1775865039299,-1156.41848616,0.00012666,2]
[420259630,1775865039310,-152.64494361,0.00012666,2]
[420259631,1775865039331,-500.0,0.00012672,2]
[420259632,1775865039349,-500.0,0.00012672,2]
[420259634,1775865039376,-624.82374017,0.00012672,2]
[420259636,1775865039402,-183.02879731,0.00012672,2]
[420259638,1775865039426,-319.73660323,0.00012672,2]
[420259641,1775865039452,-500.0,0.00012672,2]
[420259642,1775865039468,-297.87741028,0.00012672,2]
[420259644,1775865039485,-500.0,0.00012672,2]
[420259646,1775865039498,-246.32939802,0.00012673,2]
[420259648,1775865039515,-308.57923412,0.00012673,2]
[420259650,1775865039533,-500.0,0.00012673,2]
[420259652,1775865039543,-500.0,0.00012673,2]
[420259654,1775865039557,-500.0,0.00012673,2]
[420259656,1775865039570,-500.0,0.00012673,2]
[420259658,1775865039579,-500.0,0.00012673,2]
[420259660,1775865039599,-500.0,0.00012673,2]
[420259662,1775865039609,-169.70033284,0.00012673,2]
[420259664,1775865039619,-500.0,0.00012673,2]
[420259666,1775865039646,-500.0,0.00012673,2]
[420259668,1775865039655,-500.0,0.00012673,2]
[420259670,1775865039665,-1375541.92202651,0.00012673,2]
[420259672,1775865039678,-10077.89671165,0.00012673,2]
[420259676,1775865039718,-638.55537377,0.00012673,2]
[420259678,1775865039749,-1898.96099122,0.00012673,2]
[420259683,1775865039797,-1331.50731239,0.00012673,2]
[420259684,1775865039818,-110511.15758446,0.00012673,2]
[420259685,1775865039839,-9605.98229059,0.00012681,2]
[420259688,1775865040800,-19062.42110941,0.00012681,2]
[420259689,1775865040817,-1032.72554709,0.00012772,3]
[420259690,1775865040829,-155.0,0.00012772,2]
[420259691,1775865040839,-500.0,0.00012773,2]
[420259692,1775865040848,-500.0,0.00012773,2]
[420259693,1775865040875,-914.0,0.00012773,2]
[420259694,1775865040885,-514.29,0.00012773,2]
[420259695,1775865040893,-151.0,0.00012778,2]
[420259696,1775865040905,-36286.8274743,0.0001278,2]
[420259697,1775865040920,-394.07604548,0.0001278,2]
[420259698,1775865041421,-452.77341858,0.0001278,2]
[420259699,1775865041538,-840.8069128,0.0001278,2]
[420259710,1775865043265,-460.66472705,0.0001278,2]
[420259711,1775865043281,-400.00129797,0.0001278,2]
[420259712,1775865043304,-2590.96888089,0.0001278,2]
[420259713,1775865043320,-279.924521,0.0001278,2]
[420259714,1775865046346,-653.74439782,0.0001278,2]
[420259720,1775865046782,-445.3297252,0.0001278,2]
[420259721,1775865046834,-3485.83114502,0.0001278,2]
[420259723,1775865843025,300.0,0.00010699,2]
[420259724,1775865901776,154.0,0.00010699,2]
[420259725,1775865901813,1200.0,0.00010699,2]
[420259726,1775866201675,1200.0,0.00010699,2]
[420259728,1775866235979,-829.98709775,0.000107,2]
[420259729,1775866236009,-9170.02290225,0.000107,2]
[420259730,1775866236019,-250.0,0.00010798,2]
[420259731,1775866236032,-166.00000001,0.00010897,30]
[420259732,1775866236043,-1102.76,0.00011217,2]
[420259733,1775866236055,-249.00000001,0.00011217,30]
[420259734,1775866236069,-154.88,0.00011292,2]
[420259735,1775866236079,-500.0,0.00011349,2]
[420259736,1775866236090,-150.0,0.000114,2]
[420259737,1775866236113,-2000.0,0.00011486,2]
[420259738,1775866236124,-1500.0,0.00011667,2]
[420259739,1775866236140,-1142.0,0.00011764,2]
[420259740,1775866236169,-250.0,0.0001177,2]
[420259741,1775866236183,-166.66,0.00011837,2]
[420259742,1775866236199,-150.0,0.00011843,2]
[420259743,1775866236208,-500.0,0.00011844,2]
[420259744,1775866236218,-500.0,0.00011844,2]
[420259745,1775866236229,-500.0,0.00011844,2]
[420259746,1775866236246,-289.52357884,0.00011844,2]
[420259747,1775866236255,-202.29506883,0.00011844,2]
[420259748,1775866236266,-500.0,0.00011844,2]
[420259749,1775866236277,-500.0,0.00011844,2]
[420259750,1775866236292,-500.0,0.00011844,2]
[420259751,1775866236301,-500.0,0.00011844,2]
[420259752,1775866236312,-278.01339571,0.00011844,2]
[420259753,1775866236321,-500.0,0.00011844,2]
[420259754,1775866236330,-500.0,0.00011844,2]
[420259755,1775866236341,-500.0,0.00011844,2]
[420259756,1775866236355,-500.0,0.00011844,2]
[420259757,1775866236364,-500.0,0.00011844,2]
[420259758,1775866236373,-500.0,0.00011844,2]
[420259759,1775866236387,-500.0,0.00011844,2]
[420259760,1775866236401,-500.0,0.00011844,2]
[420259761,1775866236411,-500.0,0.00011844,2]
[420259762,1775866236422,-500.0,0.00011844,2]
[420259763,1775866236439,-342.39288694,0.00011844,2]
[420259764,1775866236448,-500.0,0.00011844,2]
[420259765,1775866236459,-160.93546117,0.00011844,2]
[420259766,1775866236475,-399.40597196,0.00011844,2]
[420259767,1775866236487,-500.0,0.00011844,2]
[420259768,1775866236497,-395.60218697,0.00011844,2]
[420259769,1775866236511,-191.1828265,0.00011844,2]
[420259770,1775866236527,-150.0,0.00011844,2]
[420259771,1775866236537,-150.0,0.00011844,2]
[420259772,1775866236552,-150.0,0.00011844,2]
[420259773,1775866236563,-150.0,0.00011844,2]
[420259774,1775866236573,-150.0,0.00011844,2]
[420259775,1775866236583,-150.0,0.00011844,2]
[420259776,1775866236600,-150.0,0.00011844,2]
[420259777,1775866236609,-150.0,0.00011844,2]